bitfinex-derivatives/quotes_SOLF0:USTF0_20241227
["timestamp","ask_amount","ask_price","bid_price","bid_amount"]
[1735318012122,5.64044544,184.13,183.98,16.41301347]
[1735318012328,12.77301347,184.11,183.98,16.41301347]
[1735318012533,2.7209,184.03,183.99,2.7214]
[1735318012821,2.7209,184.03,183.98,16.41301347]
[1735318013220,12.77301347,184.11,183.98,16.41301347]
[1735318014226,12.77301347,184.11,183.99,2.7214]
[1735318014525,12.77301347,184.11,183.98,16.41301347]
[1735318015425,2.7209,184.03,183.98,19.13461347]
[1735318017327,2.721,184.02,183.98,19.13461347]
[1735318018328,2.7211,184.01,183.98,16.41301347]
[1735318018920,2.721,184.02,183.98,16.41301347]
[1735318020430,12.77301347,184.11,183.98,16.41301347]
[1735318020627,12.77301347,184.11,183.98,19.13451347]
[1735318021228,12.77301347,184.08,183.96,1.5548]
[1735318021423,12.77301347,184.08,183.97,3.64]
[1735318021627,12.77301347,184.08,183.96,1.5548]
[1735318021828,12.77301347,184.08,183.98,3.64]
[1735318022424,30.27819149,184.13,183.98,16.41301347]
[1735318022626,1.5589,184.13,184.01,12.77301347]
[1735318023027,2.7204,184.07,184.02,2.721]
[1735318023428,1.5589,184.13,184.01,12.77301347]
[1735318023735,1.5589,184.13,184.02,3.1583]
[1735318024630,2.7204,184.07,184.02,5.8793]
[1735318024837,1.5589,184.13,184.02,5.8793]
[1735318025135,1.5589,184.13,184.02,3.1583]
[1735318025731,12.77301347,184.11,184.01,12.77301347]
[1735318025931,2.7211,184.01,184.0,7.52606719]
[1735318026127,2.7211,184.01,184.0,3.64]
[1735318026434,2.7213,184.0,183.99,3.64]
[1735318027232,12.81598986,184.11,183.97,3.64]
[1735318027233,12.77301347,184.05,183.97,3.64]
[1735318027434,12.77301347,184.02,183.96,3.64]
[1735318027832,1.6334,184.04,183.96,3.64]
[1735318028235,2.7214,184.0,183.96,3.64]
[1735318029131,12.77301347,184.08,183.97,1.5982]
[1735318030041,2.7209,184.03,183.98,12.77301347]
[1735318030436,1.6334,184.09,183.98,12.77301347]
[1735318031641,1.6334,184.09,183.98,15.49461347]
[1735318032044,2.721,184.03,183.98,12.77301347]
[1735318032343,12.77301347,184.08,183.97,1.5982]
[1735318032738,2.7206,184.05,183.97,1.5982]
[1735318032934,12.77301347,184.08,183.97,1.5982]
[1735318033843,2.7215,183.99,183.97,1.5982]
[1735318034545,2.7213,184.0,183.97,1.5982]
[1735318034937,12.77301347,184.08,183.97,1.5982]
[1735318034938,2.7216,183.99,183.97,1.5982]
[1735318035141,12.77301347,184.08,183.97,1.5982]
[1735318036145,2.7209,184.03,183.97,1.5982]
[1735318036348,1.6334,184.09,183.98,12.77301347]
[1735318036543,26.90914402,184.15,184.01,12.77301347]
[1735318036842,26.90914402,184.15,184.05,2.7205]
[1735318037043,26.90914402,184.15,184.06,1.6858]
[1735318037443,4.44425755,184.15,184.06,1.6858]
[1735318038037,2.89555755,184.15,184.06,1.6858]
[1735318038236,2.89555755,184.15,184.07,14.43991347]
[1735318038446,2.89555755,184.15,184.08,3.64]
[1735318040645,2.7196,184.12,184.08,3.64]
[1735318040845,2.89555755,184.15,184.08,3.64]
[1735318041348,2.72,184.09,184.08,3.64]
[1735318042550,2.7198,184.1,184.08,3.64]
[1735318043046,2.89555755,184.15,184.08,3.64]
[1735318043251,1.5487,184.2,184.08,5.1873]
[1735318043252,2.7192,184.14,184.08,5.1873]
[1735318043455,1.5487,184.2,184.1,12.77301347]
[1735318043843,12.77301347,184.23,184.12,2.7194]
[1735318044047,12.77301347,184.23,184.13,12.77301347]
[1735318044246,2.7187,184.18,184.14,3.64]
[1735318045452,2.7188,184.17,184.14,3.64]
[1735318046861,12.77301347,184.23,184.14,3.64]
[1735318048360,14.43121347,184.26,184.14,3.64]
[1735318048866,2.7188,184.18,184.14,3.64]
[1735318049363,14.43121347,184.26,184.14,3.64]
[1735318049565,14.43121347,184.26,184.16,12.77301347]
[1735318049764,1.6582,184.26,184.16,12.77301347]
[1735318050061,2.7179,184.23,184.18,2.7186]
[1735318050566,2.7179,184.23,184.17,1.6289]
[1735318050763,145.99643576,184.27,184.19,12.77301347]
[1735318051065,12.77301347,184.29,184.2,3.64]
[1735318052067,12.77301347,184.32,184.2,3.64]
[1735318052271,2.7178,184.24,184.2,3.64]
[1735318055165,2.7181,184.22,184.2,3.64]
[1735318055564,12.77301347,184.29,184.19,12.77301347]
[1735318055766,2.7186,184.19,184.16,12.77301347]
[1735318055962,12.77301347,184.26,184.15,1.6231]
[1735318056162,1.6702,184.25,184.16,3.64]
[1735318056861,2.718,184.23,184.16,3.64]
[1735318057067,1.6702,184.25,184.16,3.64]
[1735318057268,12.77301347,184.29,184.16,16.41301347]
[1735318057568,2.7176,184.25,184.19,12.77301347]
[1735318058167,91.69107448,184.3,184.22,12.77301347]
[1735318058373,91.69107448,184.3,184.23,3.64]
[1735318058566,91.69107448,184.3,184.23,5.2068]
[1735318058765,1.6702,184.31,184.23,5.2068]
[1735318058961,12.77301347,184.35,184.25,12.77301347]
[1735318059161,1.4541,184.36,184.25,12.77301347]
[1735318060872,2.7169,184.3,184.25,15.49061347]
[1735318061468,2.7172,184.28,184.25,12.77301347]
[1735318064172,1.4541,184.36,184.25,12.77301347]
[1735318064368,1.4541,184.36,184.23,5.2068]
[1735318064369,2.7174,184.27,184.23,5.2068]
[1735318064674,12.77301347,184.35,184.23,1.5668]
[1735318064874,12.77301347,184.35,184.24,3.64]
[1735318065374,2.7177,184.25,184.24,3.64]
[1735318072178,2.7174,184.26,184.24,3.64]
[1735318072377,12.77301347,184.35,184.24,3.64]
[1735318072974,1.4541,184.36,184.25,12.77301347]
[1735318073377,2.7171,184.29,184.25,12.77301347]
[1735318073577,1.4541,184.36,184.25,12.77301347]
[1735318073881,2.7166,184.32,184.28,15.49011347]
[1735318074984,2.7744683,184.41,184.28,15.49011347]
[1735318075385,2.7165,184.33,184.28,15.49011347]
[1735318075574,1.6936,184.4,184.28,15.49011347]
[1735318076479,2.7166,184.32,184.28,15.49011347]
[1735318076878,12.77301347,184.39,184.28,12.77301347]
[1735318077080,2.7169,184.3,184.29,3.62]
[1735318077781,3.2582,184.4,184.29,3.62]
[1735318077981,3.2582,184.4,184.31,12.77301347]
[1735318078275,2.7158,184.38,184.31,15.48971347]
[1735318078479,3.2582,184.4,184.31,15.48971347]
[1735318078783,3.2582,184.4,184.31,12.77301347]
[1735318078984,2.7159,184.37,184.32,2.7165]
[1735318079183,3.2582,184.4,184.31,12.77301347]
[1735318079781,3.2582,184.4,184.29,3.62]
[1735318079983,3.2582,184.4,184.3,3.62]
[1735318081182,12.77301347,184.39,184.3,3.62]
[1735318081785,12.77301347,184.36,184.25,12.77301347]
[1735318081978,12.77301347,184.36,184.26,3.62]
[1735318082177,12.77301347,184.36,184.24,56.46]
[1735318082178,12.77301347,184.33,184.27,3.62]
[1735318082379,3.2263,184.32,184.27,3.62]
[1735318082986,2.7171,184.28,184.27,3.62]
[1735318084093,3.2263,184.32,184.24,56.46]
[1735318084392,2.7176,184.25,184.24,56.46]
[1735318084687,2.7176,184.25,184.24,60.08]
[1735318085187,2.7169,184.3,184.24,60.08]
[1735318085486,3.2263,184.32,184.24,60.08]
[1735318086091,2.7176,184.25,184.24,60.08]
[1735318086685,2.7176,184.25,184.24,3.62]
[1735318087085,2.7182,184.21,184.19,12.77301347]
[1735318087286,12.77301347,184.3,184.2,3.62]
[1735318087491,3.2263,184.32,184.22,12.77301347]
[1735318087891,1.5667,184.35,184.25,12.77301347]
[1735318088085,12.77301347,184.39,184.28,12.77301347]
[1735318088286,2.7163,184.34,184.28,12.77301347]
[1735318088587,1.6546,184.4,184.28,12.77301347]
[1735318088888,1.6546,184.4,184.31,12.77301347]
[1735318089089,1.6546,184.4,184.32,3.62]
[1735318089295,2.7744683,184.41,184.32,3.62]
[1735318089495,2.7156,184.39,184.32,3.62]
[1735318089794,2.7744683,184.41,184.34,12.77301347]
[1735318089994,22.46488647,184.46,184.34,12.77301347]
[1735318090191,110.87461044,184.48,184.34,12.77301347]
[1735318090693,110.87461044,184.48,184.34,17.60061347]
[1735318090989,2.7155,184.4,184.34,17.60061347]
[1735318091190,110.87461044,184.48,184.34,17.60061347]
[1735318091587,2.7155,184.4,184.34,17.60061347]
[1735318091790,98.10159697,184.48,184.37,12.77301347]
[1735318091994,98.10159697,184.48,184.38,3.62]
[1735318092194,2.7149,184.44,184.38,3.62]
[1735318092394,98.10159697,184.48,184.38,3.62]
[1735318093395,2.7149,184.43,184.38,3.62]
[1735318094398,2.7151,184.42,184.38,3.62]
[1735318095196,12.77301347,184.5,184.38,3.62]
[1735318095396,14.36201347,184.52,184.4,12.77301347]
[1735318095800,14.36201347,184.52,184.4,15.48841347]
[1735318096698,14.36201347,184.52,184.4,12.77301347]
[1735318097001,12.77301347,184.54,184.4,12.77301347]
[1735318097401,1.6867,184.55,184.4,12.77301347]
[1735318097597,14.45971347,184.55,184.41,3.62]
[1735318097996,2.7146,184.45,184.41,3.62]
[1735318099704,2.7144,184.47,184.41,6.3352]
[1735318100399,2.7142,184.49,184.43,12.77301347]
[1735318100796,2.7144,184.47,184.43,12.77301347]
[1735318100999,1.6867,184.55,184.44,3.62]
[1735318101303,2.7137,184.52,184.44,3.62]
[1735318101501,1.6867,184.55,184.44,3.62]
[1735318102096,2.7146,184.46,184.44,3.62]
[1735318102500,12.77301347,184.54,184.44,3.62]
[1735318103604,2.7144,184.47,184.44,3.62]
[1735318103815,14.45971347,184.55,184.44,3.62]
[1735318104206,14.45971347,184.55,184.43,12.77301347]
[1735318104406,14.45971347,184.55,184.44,3.62]
[1735318104407,12.77301347,184.52,184.44,3.62]
[1735318104598,12.77301347,184.52,184.45,3.62]
[1735318104806,1.6412,184.51,184.45,3.62]
[1735318105002,2.7145,184.46,184.45,3.62]
[1735318105306,1.6412,184.51,184.4,12.77301347]
[1735318105509,1.6067,184.5,184.41,3.62]
[1735318105696,2.7151,184.42,184.41,3.62]
[1735318105899,12.77301347,184.49,184.37,16.11871347]
[1735318106103,12.77301347,184.49,184.38,3.62]
[1735318106305,12.77301347,184.46,184.38,3.62]
[1735318106607,12.77301347,184.46,184.39,3.62]
[1735318106806,1.6602,184.45,184.39,3.62]
[1735318107004,2.7154,184.4,184.39,3.62]
[1735318107508,2.7158,184.38,184.34,14.41261347]
[1735318107701,2.7158,184.38,184.35,3.62]
[1735318108507,2.7159,184.37,184.35,3.62]
[1735318109305,1.6602,184.45,184.35,3.62]
[1735318109506,2.716,184.36,184.35,3.62]
[1735318110107,12.77301347,184.43,184.31,12.77301347]
[1735318110304,12.77301347,184.4,184.32,3.62]
[1735318110504,12.77301347,184.37,184.23,60.20853759]
[1735318110706,1.6709,184.36,184.26,3.62]
[1735318110907,12.77301347,184.34,184.27,3.62]
[1735318111811,1.6709,184.36,184.27,3.62]
[1735318113408,2.7165,184.33,184.27,6.3372]
[1735318113606,3.1611,184.42,184.29,12.77301347]
[1735318113812,3.1611,184.42,184.32,12.77301347]
[1735318114013,3.1611,184.42,184.33,3.62]
[1735318114313,1.6169,184.44,184.35,12.77301347]
[1735318115314,1.6169,184.44,184.33,3.62]
[1735318115709,2.7153,184.41,184.33,3.62]
[1735318115912,1.6169,184.44,184.35,12.77301347]
[1735318116110,1.6169,184.44,184.35,15.48911347]
[1735318116315,1.6169,184.44,184.34,21.99295145]
[1735318117512,1.6169,184.44,184.34,1.6387]
[1735318118214,2.7152,184.41,184.34,1.6387]
[1735318118419,1.6169,184.44,184.34,1.6387]
[1735318118926,2.7157,184.38,184.34,1.6387]
[1735318121123,1.6169,184.44,184.34,1.6387]
[1735318121328,2.7158,184.37,184.34,1.6387]
[1735318121823,2.7161,184.35,184.32,3.1848]
[1735318122024,21.97115145,184.44,184.28,20.35425145]
[1735318122232,20.35425145,184.41,184.29,3.62]
[1735318122530,3.3927,184.4,184.29,3.62]
[1735318122929,3.3927,184.4,184.3,3.62]
[1735318123126,20.35425145,184.38,184.26,30.10426878]
[1735318123523,20.35425145,184.38,184.27,3.62]
[1735318124328,3.3927,184.4,184.27,3.62]
[1735318124834,2.7168,184.31,184.27,3.62]
[1735318125731,3.3927,184.4,184.27,3.62]
[1735318125933,20.35425145,184.38,184.22,20.35425145]
[1735318126235,2.7163,184.34,184.23,3.62]
[1735318126421,20.35425145,184.38,184.23,6.3379]
[1735318126930,2.7173,184.28,184.23,6.3379]
[1735318127135,20.35425145,184.38,184.23,3.62]
[1735318128132,20.35425145,184.35,184.19,20.35425145]
[1735318128425,1.6466,184.34,184.2,3.62]
[1735318128822,1.6466,184.34,184.2,6.3383]
[1735318129024,1.6466,184.34,184.2,3.62]
[1735318129431,2.7179,184.23,184.2,3.62]
[1735318129621,1.6466,184.34,184.2,3.62]
[1735318129827,2.7168,184.31,184.25,2.7175]
[1735318130021,2.7168,184.31,184.26,3.62]
[1735318130834,23.74695145,184.4,184.26,3.62]
[1735318130835,2.7166,184.32,184.26,3.62]
[1735318131031,3.3927,184.4,184.28,20.35425145]
[1735318131232,1.6104,184.41,184.31,2.7167]
[1735318131436,2.7158,184.38,184.32,3.62]
[1735318131929,1.6104,184.41,184.32,6.3365]
[1735318132126,2.7158,184.37,184.32,6.3365]
[1735318132932,2.7158,184.37,184.32,3.62]
[1735318133731,2.7157,184.38,184.32,3.62]
[1735318133932,2.95305509,184.45,184.34,20.35425145]
[1735318134234,2.95305509,184.45,184.36,2.7159]
[1735318134235,2.7152,184.41,184.36,2.7159]
[1735318135027,2.7152,184.41,184.35,3.2522]
[1735318135634,2.7151,184.42,184.35,3.2522]
[1735318135827,2.95305509,184.45,184.35,3.2522]
[1735318136639,2.95305509,184.45,184.32,3.62]
[1735318137638,23.30730654,184.45,184.33,3.62]
[1735318137838,2.95305509,184.45,184.33,3.62]
[1735318138229,2.716,184.36,184.33,3.62]
[1735318138834,2.95305509,184.45,184.33,3.62]
[1735318139338,2.7159,184.37,184.33,3.62]
[1735318139840,2.7156,184.39,184.33,6.3364]
[1735318140030,2.7156,184.39,184.33,3.62]
[1735318140735,2.7156,184.39,184.33,6.3364]
[1735318140929,2.7158,184.37,184.33,3.62]
[1735318141337,2.95305509,184.45,184.34,3.62]
[1735318142037,2.716,184.36,184.35,3.62]
[1735318143542,2.95305509,184.45,184.35,3.62]
[1735318144541,2.716,184.36,184.35,3.62]
[1735318144943,2.95305509,184.45,184.35,3.62]
[1735318145342,2.7158,184.38,184.35,3.62]
[1735318145943,2.95305509,184.45,184.35,3.62]
[1735318146441,2.95305509,184.45,184.36,3.1373]
[1735318147146,2.95305509,184.45,184.37,3.62]
[1735318148448,2.7157,184.38,184.37,3.62]
[1735318148844,2.95305509,184.45,184.37,3.62]
[1735318150041,2.7157,184.38,184.37,3.62]
[1735318151047,2.95305509,184.45,184.37,3.62]
[1735318151647,2.7152,184.41,184.37,3.62]
[1735318152051,2.95305509,184.45,184.37,3.62]
[1735318152242,2.7156,184.39,184.37,3.62]
[1735318152546,2.95305509,184.45,184.38,3.62]
[1735318152939,2.7155,184.39,184.38,3.62]
[1735318153148,2.95305509,184.45,184.38,3.62]
[1735318153339,3.219,184.48,184.38,3.62]
[1735318153545,102.7719374,184.49,184.38,3.62]
[1735318153744,102.7719374,184.49,184.4,20.35425145]
[1735318154045,102.7719374,184.49,184.4,23.06965145]
[1735318154748,2.7148,184.45,184.4,23.06965145]
[1735318155150,23.63055145,184.56,184.43,2.7149]
[1735318155449,1.6585,184.55,184.44,3.62]
[1735318155644,2.7144,184.47,184.44,3.62]
[1735318155843,1.6585,184.55,184.44,3.62]
[1735318157449,2.7145,184.46,184.44,3.62]
[1735318159252,2.7144,184.47,184.44,3.62]
[1735318159549,1.6585,184.55,184.44,3.62]
[1735318159940,2.7145,184.46,184.44,3.62]
[1735318160140,1.6585,184.55,184.45,3.6]
[1735318160345,14.37066785,184.55,184.45,3.6]
[1735318160550,2.7143,184.48,184.45,3.6]
[1735318160850,2.7143,184.48,184.45,16.31216785]
[1735318161248,2.714,184.5,184.45,16.31216785]
[1735318162451,2.7137,184.52,184.48,12.71216785]
[1735318163550,2.7138,184.51,184.48,12.71216785]
[1735318163951,1.7015,184.59,184.48,12.71216785]
[1735318164654,2.7139,184.5,184.48,12.71216785]
[1735318166054,12.71216785,184.58,184.45,12.71216785]
[1735318166352,12.71216785,184.58,184.39,7.52606719]
[1735318166353,12.71216785,184.52,184.46,3.6]
[1735318166553,2.7154,184.4,184.39,30.10426878]
[1735318166854,2.7154,184.4,184.39,33.70426878]
[1735318167651,2.7157,184.38,184.37,12.71216785]
[1735318167853,2.7157,184.38,184.37,3.6]
[1735318168348,2.7151,184.42,184.37,3.6]
[1735318168552,2.7151,184.42,184.36,20.35577924]
[1735318168756,4.8642,184.51,184.38,3.6]
[1735318169656,2.7155,184.4,184.38,3.6]
[1735318170656,2.7155,184.39,184.38,3.6]
[1735318171655,4.8642,184.51,184.34,56.44]
[1735318171656,20.35577924,184.46,184.34,56.44]
[1735318171856,20.35577924,184.43,184.29,31.75766878]
[1735318172057,4.8273,184.42,184.3,3.6]
[1735318172253,2.7168,184.31,184.3,3.6]
[1735318172757,20.35577924,184.4,184.3,3.6]
[1735318172965,2.7165,184.33,184.3,3.6]
[1735318173962,2.7162,184.35,184.3,3.6]
[1735318174459,4.8273,184.42,184.3,3.6]
[1735318175565,2.7163,184.34,184.3,3.6]
[1735318176860,4.8273,184.42,184.3,3.6]
[1735318177366,2.7165,184.33,184.3,3.6]
[1735318177863,4.8273,184.42,184.3,3.6]
[1735318178056,2.7164,184.34,184.3,3.6]
[1735318178262,4.8273,184.42,184.3,3.6]
[1735318178766,2.7163,184.34,184.3,3.6]
[1735318179161,4.8273,184.42,184.3,3.6]
[1735318179464,2.7166,184.32,184.3,3.6]
[1735318180365,2.7167,184.31,184.3,3.6]
[1735318181360,2.7167,184.31,184.24,7.37727979]
[1735318181561,20.35577924,184.4,184.25,3.6]
[1735318181765,20.35577924,184.4,184.24,7.37727979]
[1735318181964,20.35577924,184.4,184.26,3.6]
[1735318182160,2.7173,184.28,184.26,3.6]
[1735318183268,4.8273,184.42,184.26,3.6]
[1735318183470,4.8273,184.42,184.3,20.35577924]
[1735318183771,2.7158,184.38,184.33,2.7163]
[1735318183971,4.8273,184.42,184.34,3.6]
[1735318184361,2.7155,184.4,184.34,6.3161]
[1735318184970,2.7152,184.42,184.35,2.716]
[1735318185165,2.7152,184.42,184.36,20.35577924]
[1735318185370,4.7933,184.48,184.36,20.35577924]
[1735318185570,4.7933,184.48,184.37,2.7158]
[1735318185969,4.7933,184.48,184.36,20.35577924]
[1735318186167,1.6998,184.55,184.4,2.7154]
[1735318186373,1.5572,184.54,184.41,3.6]
[1735318187170,2.7139,184.51,184.41,3.6]
[1735318187374,1.5572,184.54,184.41,3.6]
[1735318187977,2.714,184.5,184.43,2.7148]
[1735318188379,1.5572,184.54,184.42,20.35577924]
[1735318188578,2.7142,184.48,184.41,6.3152]
[1735318189082,2.7139,184.5,184.43,2.7149]
[1735318189384,1.5572,184.54,184.43,2.7149]
[1735318189672,2.7142,184.48,184.41,6.3151]
[1735318190269,1.5572,184.54,184.42,12.71206851]
[1735318190780,12.71206851,184.52,184.43,3.6]
[1735318191279,2.7147,184.45,184.43,3.6]
[1735318191473,12.71206851,184.52,184.43,3.6]
[1735318192673,2.7148,184.44,184.43,3.6]
[1735318195278,12.71206851,184.52,184.43,3.6]
[1735318195279,2.7146,184.46,184.43,3.6]
[1735318195474,1.5572,184.54,184.43,3.6]
[1735318195679,12.71206851,184.52,184.43,3.6]
[1735318195881,12.71206851,184.52,184.44,3.6]
[1735318196081,12.71206851,184.49,184.44,3.6]
[1735318196282,2.7156,184.39,184.36,12.71206851]
[1735318196476,2.7156,184.39,184.37,3.6]
[1735318196676,1.637,184.48,184.37,3.6]
[1735318197377,2.7154,184.41,184.37,3.6]
[1735318197580,1.637,184.48,184.37,3.6]
[1735318197980,1.637,184.48,184.38,3.6]
[1735318198484,2.7154,184.4,184.38,3.6]
[1735318199384,1.637,184.48,184.38,6.3157]
[1735318199584,1.637,184.48,184.38,3.6]
[1735318200578,2.7153,184.41,184.35,2.716]
[1735318200884,12.71206851,184.46,184.36,3.6]
[1735318201085,12.71206851,184.46,184.33,1.5568]
[1735318201086,1.6314,184.45,184.33,1.5568]
[1735318201385,12.71206851,184.43,184.34,3.6]
[1735318201889,2.7166,184.32,184.29,61.77693759]
[1735318202079,12.71206851,184.4,184.31,3.6]
[1735318202285,3.2975,184.39,184.31,3.6]
[1735318202891,2.716,184.36,184.31,6.3167]
[1735318203286,3.2975,184.39,184.31,3.6]
[1735318203484,2.7166,184.32,184.31,3.6]
[1735318204790,2.717,184.29,184.24,6.71257979]
[1735318204987,3.2975,184.39,184.25,3.6]
[1735318207093,2.7172,184.28,184.25,3.6]
[1735318207285,3.2975,184.39,184.24,3.99487979]
[1735318207490,3.2975,184.39,184.25,3.6]
[1735318207894,2.7171,184.29,184.25,3.6]
[1735318208198,3.2975,184.39,184.25,3.6]
[1735318208496,2.7172,184.28,184.25,3.6]
[1735318208892,2.7172,184.28,184.22,62.2815]
[1735318208893,20.37595763,184.37,184.26,3.6]
[1735318209092,2.7175,184.26,184.22,59.5636]
[1735318209287,1.6298,184.36,184.22,59.5636]
[1735318209490,1.6298,184.36,184.23,3.6]
[1735318209692,1.6298,184.36,184.23,23.97595763]
[1735318209895,3.2975,184.39,184.26,20.37595763]
[1735318210093,3.2975,184.39,184.27,1.5922]
[1735318210295,2.7161,184.35,184.3,2.7168]
[1735318210496,2.7161,184.35,184.31,3.6]
[1735318211098,1.6211,184.42,184.31,3.6]
[1735318211297,1.6211,184.42,184.32,1.6642]
[1735318211499,2.7155,184.39,184.32,1.6642]
[1735318211701,1.6211,184.42,184.32,1.6642]
[1735318212396,1.6211,184.42,184.31,3.6]
[1735318213100,2.7166,184.32,184.31,3.6]
[1735318213702,1.6211,184.42,184.31,3.6]
[1735318214101,2.7156,184.39,184.31,3.6]
[1735318214298,1.6211,184.42,184.31,3.6]
[1735318216300,2.7166,184.32,184.31,3.6]
[1735318216599,20.37595763,184.38,184.24,1.6576]
[1735318216804,20.37595763,184.35,184.25,3.6]
[1735318217302,1.6179,184.34,184.26,3.6]
[1735318217901,20.37595763,184.32,184.22,30.10426878]
[1735318218104,20.37595763,184.32,184.23,3.6]
[1735318218503,2.7183,184.21,184.19,1.5366]
[1735318218703,20.37595763,184.32,184.2,3.6]
[1735318221502,20.37595763,184.29,184.21,3.6]
[1735318221704,20.37595763,184.29,184.22,3.6]
[1735318221907,2.7179,184.23,184.22,3.6]
[1735318222197,1.577,184.28,184.15,1.7048]
[1735318222403,3.2158,184.28,184.16,3.6]
[1735318222602,3.2158,184.28,184.15,1.7048]
[1735318222795,3.2158,184.28,184.16,3.6]
[1735318223302,2.7186,184.18,184.16,3.6]
[1735318224508,20.37595763,184.26,184.17,3.6]
[1735318224707,1.6793,184.25,184.17,3.6]
[1735318225503,2.7192,184.15,184.1,58.1466]
[1735318225806,2.7192,184.15,184.11,3.6]
[1735318227009,2.7189,184.17,184.11,3.6]
[1735318227310,20.37595763,184.23,184.12,3.6]
[1735318228004,1.6793,184.25,184.02,7.52606719]
[1735318228200,20.37595763,184.2,184.04,4.8413]
[1735318228405,1.5896,184.19,184.04,4.8413]
[1735318228608,2.7201,184.08,184.05,3.6]
[1735318228912,20.37595763,184.17,184.05,3.6]
[1735318229112,1.5427,184.16,184.04,12.36736719]
[1735318229408,1.5427,184.16,184.06,3.6]
[1735318229409,20.37595763,184.14,184.06,3.6]
[1735318229608,2.7202,184.07,184.06,3.6]
[1735318230508,20.37595763,184.11,184.03,3.6]
[1735318230807,20.37595763,184.08,183.99,3.6]
[1735318231213,2.7208,184.04,183.99,3.6]
[1735318231405,20.37595763,184.08,183.99,3.6]
[1735318232504,2.721,184.02,183.99,3.6]
[1735318233509,20.37595763,184.08,183.99,3.6]
[1735318233712,3.2704,184.1,183.99,3.6]
[1735318234010,2.7203,184.07,183.99,6.3213]
[1735318234212,3.2704,184.1,184.0,3.6]
[1735318235512,2.7203,184.07,184.02,2.721]
[1735318235914,20.37595763,184.14,184.0,3.6]
[1735318236108,21.99135763,184.14,184.0,3.6]
[1735318237314,2.7205,184.06,184.01,2.7211]
[1735318238320,12.77124338,184.11,184.0,3.6]
[1735318239518,2.7204,184.06,184.0,6.3213]
[1735318239715,12.77124338,184.11,184.0,6.3213]
[1735318239716,12.77124338,184.11,184.0,3.6]
[1735318239907,12.77124338,184.11,184.01,12.77124338]
[1735318240107,14.38664338,184.14,184.01,12.77124338]
[1735318240313,2.7201,184.09,184.01,12.77124338]
[1735318240510,1.5427,184.16,184.04,12.77124338]
[1735318240714,12.77124338,184.17,184.07,12.77124338]
[1735318240912,2.7193,184.14,184.08,6.32]
[1735318241215,12.77124338,184.17,184.08,3.6]
[1735318241511,2.7194,184.13,184.08,6.3201]
[1735318241908,12.77124338,184.2,184.08,3.6]
[1735318242106,2.7192,184.14,184.08,3.6]
[1735318242420,2.7192,184.14,184.09,2.7198]
[1735318242616,2.7192,184.14,184.1,3.6]
[1735318247718,2.7194,184.13,184.1,3.6]
[1735318248224,12.77124338,184.2,184.1,3.6]
[1735318249017,2.7188,184.17,184.1,3.6]
[1735318249218,12.77124338,184.2,184.1,3.6]
[1735318249521,2.7201,184.09,184.08,3.6]
[1735318249723,12.77124338,184.14,184.08,3.6]
[1735318250025,2.7195,184.13,184.08,3.6]
[1735318250324,12.77124338,184.14,184.08,3.6]
[1735318250519,3.1392,184.22,184.08,3.6]
[1735318250720,12.77124338,184.19,184.08,3.6]
[1735318251818,2.7192,184.14,184.09,2.7199]
[1735318252221,12.77124338,184.19,184.08,3.6]
[1735318252521,12.77124338,184.16,184.05,35.00446878]
[1735318252712,12.77124338,184.16,184.06,3.6]
[1735318253413,12.77124338,184.13,184.07,3.6]